Cogmind - Beta 16 @@@ ROGUE MODE // 2025.11.11 @ 15:48:48 Player: Mozco Result: Destroyed by P-70 Sage with Tesla Rifle Performance ------------- Evolutions (5) 2500 Regions Visited (8) 1600 Robots Destroyed (164) 820 Value Destroyed (7808) 7808 Prototype IDs (23) 460 Alien Tech Used (0) 0 Bonus (4720) 4720 TOTAL SCORE: 17908 Bonus ------- High Alert Combat Kills 700 Follower Combat Kills 720 Delivered SUBCON Basin 2000 Registered with UFD 300 Met Optimus in HQ 500 Met R17 at Cetus 500 Cogmind --------- Core Integrity 0/1000 Matter 300/300 Energy 95/100 System Corruption 48% Temperature Cool (0) Movement Core (100) Ox1 Location -5/Factory Parts ------- > --- POWER (1) -------- (None) > --- PROPULSION (4) --- (None) > --- UTILITY (9) ------ (None) > --- WEAPON (3) ------- Companion Sword (fused) > --- INVENTORY (5) ---- Centrium Heavy Treads Centrium Heavy Treads Improved Proton Missile Launcher Peak State ------------ > --- POWER ------------ Neutrino Core > --- PROPULSION ------- Centrium Heavy Treads Centrium Heavy Treads > --- UTILITY ---------- High-capacity Storage Unit Advanced Signal Interpreter Advanced Melee Analysis Suite Core Analyzer Armor Integrity Analyzer Centrium Medium Armor Plating Centrium Medium Armor Plating EM Shield Tech Extrapolator > --- WEAPON ----------- Companion Sword Phasing Sabre Makeshift Spear > --- INVENTORY -------- Quantum Reactor Quantum Reactor Improved Medium Treads Centrium Heavy Treads Centrium Heavy Treads Centrium Heavy Treads Energy Well Energy Well Deep Structural Scanner Advanced Sensor Array Centrium Medium Armor Plating Centrium Medium Armor Plating System Restoration Module Variable Charge Gun Improved Proton Missile Launcher Improved Proton Missile Launcher [Rating: 119] Favorites ----------- Power Improved Ion Engine Engine Improved Ion Engine Power Core Neutrino Core Reactor Cold Fusion Reactor Propulsion Light Treads Treads Light Treads Leg Carbon-fiber Leg Hover Unit Improved Airjet Utility Tech Extrapolator Device Deep Structural Scanner Storage High-capacity Storage Unit Processor Tech Extrapolator Hackware Improved System Shield Protection Makeshift Light Armor Plating Weapon Companion Sword Energy Gun Subdweller Laser Energy Cannon Advanced Plasma Cannon Ballistic Gun Subdweller Machine Gun Ballistic Cannon Gauss Cannon Launcher Improved Proton Missile Launcher Special Weapon Mining Laser Impact Weapon Heavy Mace Slashing Weapon Companion Sword Piercing Weapon Makeshift Spear Build | -11 -10 -10 -9 -9 -6 -6 -6 -5 ------- Run | Yrd Mat Sub Rec Scr Fac Ext Cet Fac Slots Evolved 10 | . . . . . 8 . . 2 Power . | . . . . . . . . . Propulsion 2 | . . . . . 2 . . . Utility 7 | . . . . . 6 . . 1 Weapon 1 | . . . . . . . . 1 Parts Attached 167 | 6 5 12 2 9 47 36 20 30 Power 19 | 1 1 1 . 1 2 4 2 7 Engine 11 | 1 1 1 . 1 1 3 1 2 Core 3 | . . . . . . . . 3 Reactor 5 | . . . . . 1 1 1 2 Propulsion 54 | 2 1 1 1 2 22 14 8 3 Treads 37 | 2 1 1 1 2 8 11 8 3 Leg 15 | . . . . . 13 2 . . Wheel . | . . . . . . . . . Hover 2 | . . . . . 1 1 . . Flight . | . . . . . . . . . Utility 70 | 1 2 3 . 4 20 15 7 18 Device 21 | . . . . 1 8 5 1 6 Storage 7 | 1 2 1 . 2 . . 1 . Processor 12 | . . . . 1 3 3 1 4 Hackware 1 | . . . . . . . . 1 Protection 29 | . . 2 . . 9 7 4 7 Artifact . | . . . . . . . . . Weapon 24 | 2 1 7 1 2 3 3 3 2 Energy Gun 5 | . . 4 . . . . 1 . Energy Cannon 1 | . . . . . . . . 1 Ballistic Gun 6 | 2 . 2 . . 1 . 1 . Ballistic Cannon 2 | . . . 1 1 . . . . Launcher 3 | . . . . . 1 1 1 . Special Weapon 1 | . 1 . . . . . . . Impact Weapon 1 | . . . . . . . . 1 Slashing Weapon 3 | . . . . 1 1 1 . . Piercing Weapon 2 | . . 1 . . . 1 . . Special Melee Weapon . | . . . . . . . . . Unidentified Prototypes 9 | . . . . 1 3 1 4 . Corrupted Parts 7 | . . . . . . . 6 1 System Corruption 47 | . . . . . . . 46 1 Parts Lost 77 | . . 3 . . 11 12 10 41 Power 8 | . . . . . . 1 1 6 Propulsion 21 | . . 1 . . 3 4 5 8 Utility 39 | . . . . . 8 6 3 22 Weapon 9 | . . 2 . . . 1 1 5 Highest Loss Streak 19 | . . 2 . . 3 8 10 19 To Critical Strikes 4 | . . . . . . . 1 3 Average Backups 15 | 1 7 14 18 13 17 17 16 15 Power 1 | . 2 2 2 1 2 1 1 1 Propulsion 2 | . . . . 1 3 7 3 3 Utility 5 | . 1 3 7 5 6 5 7 7 Weapon 5 | . 3 7 9 4 5 3 3 2 Tool/Special . | . . . . . . . . . Unused Backups 37 | . 2 4 . 6 15 4 2 4 Power 9 | . 2 . . 1 5 . . 1 Propulsion 5 | . . . . . 1 3 1 . Utility 8 | . . . . 2 4 1 . 1 Weapon 15 | . . 4 . 3 5 . 1 2 Tool/Special . | . . . . . . . . . Average Slot Usage (%) 91 | . 92 95 85 91 95 95 89 82 Engine 8 | . 14 14 14 12 1 5 4 . Reactor 1 | . . . . . 4 . 1 1 Treads 22 | . 28 28 28 25 15 22 19 12 Leg 1 | . . . . . 9 3 . . Device 4 | . . . . . 14 5 3 7 Storage 10 | . 21 14 14 12 6 5 7 6 Processor 10 | . . . . 13 17 18 29 24 Protection 7 | . . 9 . . 10 17 7 6 Energy Gun 4 | . . 13 12 . . . . . Ballistic Gun 4 | . 27 8 12 . . . . . Ballistic Cannon 1 | . . . 1 9 . . . . Special Weapon 1 | . . 3 . . . . . . Slashing Weapon 4 | . . . . 2 11 7 6 7 Piercing Weapon 4 | . . 2 1 12 1 4 2 3 Peak Build Rating 119 | 6 9 35 38 30 75 111 111 119 Average Rating 48 | 4 7 19 35 24 66 77 89 101 On Entrance 43 | . 6 9 35 20 30 73 111 109 Avg Prop Armor Cover (%) 4 | . . . . . 9 4 . . Naked Turns . | . . . . . . . . . Heaviest Build 215 | 13 40 215 215 212 96 130 130 93 Greatest Support 160 | 40 40 40 43 46 121 143 160 160 Greatest Overweight (x) 25 | . . 5 5 4 2 25 . 1 Average Overweight (x) . | . . . 4 . . . . . Largest Inventory Capacity 35 | 8 15 35 35 35 20 20 20 20 Average Capacity 21 | 6 11 21 35 16 20 20 20 19 Most Carried 35 | 2 11 34 35 21 20 20 20 20 Average Carried 19 | 1 7 16 34 14 19 19 18 18 Final Capacity 35 | 8 15 35 35 20 20 20 20 5 Final Carried 34 | 2 11 34 21 20 18 20 20 5 Class Distribution -------------------- 26% | Mutant 21% | Hauler-Mutant 16% | Scavenger-Gladiator 12% | Gladiator 10% | Derelict-Mutant 4% | Scavenger-Mutant 3% | Infiltrator-Gladiator 3% | Commander-Gladiator Dominant Class ---------------- Mutant | -10/Materials Mutant | -10/Subcaves Hauler-Mutant | -9/Recycling Mutant | -9/Scraptown Gladiator | -6/Factory Gladiator | -6/Extension Scavenger-Gladiator | -6/Cetus Scavenger-Gladiator | -5/Factory Resources | -11 -10 -10 -9 -9 -6 -6 -6 -5 ----------- Run | Yrd Mat Sub Rec Scr Fac Ext Cet Fac Matter Collected 2863 | 212 220 239 16 106 685 405 344 636 Remotely . | . . . . . . . . . Salvage Created 9847 | . 317 590 143 . 2144 1932 672 4049 Parts 426 | . 23 34 6 . 99 76 25 163 Haulers Intercepted 5 | . 1 . . . 2 . . 2 Recyclers Shooed 4 | . . . . . . 3 . 1 Parts Field Recycled . | . . . . . . . . . Retrieved Matter . | . . . . . . . . . Parts Self-Destructed 14 | . . 14 . . . . . . Prevented . | . . . . . . . . . Parts Restored . | . . . . . . . . . Kills | -11 -10 -10 -9 -9 -6 -6 -6 -5 ------- Run | Yrd Mat Sub Rec Scr Fac Ext Cet Fac Combat Hostiles Destroyed 127 | . 8 11 1 . 27 17 8 55 Melee 92 | . . 1 . . 24 17 4 46 Guns 17 | . 8 8 1 . . . . . AOE 10 | . . . . . 3 . . 7 Classes Destroyed 19 | . 4 4 1 . 6 1 . 3 Worker 5 | . 1 . . . 2 . . 2 Builder 4 | . . . . . 1 . . 3 Hauler 5 | . 1 . . . 2 . . 2 Recycler 11 | . . . 1 . 2 6 . 2 Mechanic 1 | . . . . . . . . 1 Operator 2 | . . . . . 1 1 . . Turret 2 | . . 2 . . . . . . Watcher 7 | . . . . . 2 1 1 3 Swarmer 7 | . 2 . . . . . . 5 Grunt 59 | . 6 . . . 17 8 . 28 Brawler 3 | . . . . . . . . 3 Duelist 2 | . . . . . . . . 2 Sentry 14 | . . 1 1 . 2 7 . 3 Specialist 2 | . . . . . 2 . . . Hunter 9 | . . . . . 3 . . 6 Programmer 11 | . . . . . 3 . . 8 Behemoth 1 | . . . . . . 1 . . Cetus Guard 8 | . . . . . . . 8 . Artisan 1 | . . 1 . . . . . . Subdweller 10 | . . 10 . . . . . . Thug 1 | . . . . . . 1 . . Best Kill Streak 8 | . 3 2 1 . 7 3 5 8 Combat Bots Only 8 | . 3 2 1 . 7 3 4 8 Max Kills in Single Turn 3 | . 1 1 1 . 3 1 2 3 Gunslinging . | . . . . . . . . . Exploded 3 | . . . . . 3 . . 2 Melee 1 | . . 1 . . 1 1 1 1 Uniques/NPCs Destroyed . | . . . . . . . . . Combat | -11 -10 -10 -9 -9 -6 -6 -6 -5 -------- Run | Yrd Mat Sub Rec Scr Fac Ext Cet Fac Hostile Shots Fired 1694 | . 46 79 4 . 403 384 110 668 Missed 476 | . 12 20 . . 119 134 33 158 Hits 1218 | . 34 59 4 . 284 250 77 510 Melee 36 | . . . . . . . . 36 Projectile 1182 | . 34 59 4 . 284 250 77 474 Critical Strikes 60 | . . 1 . . 7 5 7 40 Actively Blocked 1 | . . . . . . 1 . . Damage Taken 20297 | . 369 1088 59 . 3680 2944 1919 10238 Core 2032 | . 57 182 . . 408 219 158 1008 Absorbed by Shields 900 | . . . . . 538 251 111 . Redirected to Shielding 114 | . . . . . . 114 . . Ignored by Resistances 849 | . . . . . 441 . 170 238 Core Remaining (%) 37 | 100 . . . 4 . . 7 . Volleys Fired 173 | . 34 109 8 . 1 3 6 12 Largest 2 | . 2 2 2 . 1 1 2 1 Hottest 150 | . 100 150 90 . 40 15 86 98 Shots Fired 257 | . 67 150 13 . 1 3 9 14 Gun 178 | . 66 98 11 . . 3 . . Cannon 7 | . . . 2 . . . . 5 Launcher 19 | . . . . . 1 . 9 9 Special 53 | . 1 52 . . . . . . Kinetic 102 | . 66 24 8 . 1 3 . . Thermal 93 | . 1 82 5 . . . . 5 Explosive . | . . . . . . . . . Electromagnetic 62 | . . 44 . . . . 9 9 Robot Hit Streak 15 | . 9 15 6 . 2 2 3 4 Robot Miss Streak 3 | . 3 2 2 . . 1 . 2 Penetration Max . | . . . . . . . . . Secondary Targets 4 | . 3 1 . . . . . . Max Gunslinging Chain 1 | . 1 1 . . . . . . Shots Hit Robots 580 | . 45 78 6 . 119 80 33 219 Core Hits 255 | . 19 29 3 . 50 32 23 99 Critical Kills . | . . . . . . . . . Critical Parts Destroyed 1 | . . . 1 . . . . . Critical Strikes 20 | . . . 1 . 4 3 2 10 Destroy 1 | . . . 1 . . . . . Sever 6 | . . . . . 2 1 . 3 Impale 5 | . . . . . . . 2 3 Melee Attacks 574 | . . 14 4 . 145 93 35 283 Impact 4 | . . . . . . . . 4 Slashing 494 | . . . . . 143 82 26 243 Piercing 76 | . . 14 4 . 2 11 9 36 Sneak Attacks 40 | . . . . . 13 14 . 13 Combat Hostiles 4 | . . . . . . . . 4 Follow-up Attacks 87 | . . . . . 13 12 10 52 Damage Inflicted 24040 | . 486 1394 131 . 6007 3710 2046 10266 Guns 2023 | . 468 1359 131 . . 65 . . Cannons 35 | . . . . . . . . 35 Explosions 2844 | . . . . . 353 . 843 1648 Melee 19113 | . . 35 . . 5654 3645 1203 8576 Ramming 25 | . 18 . . . . . . 7 Kinetic 1253 | . 468 299 68 . 353 65 . . Thermal 1269 | . . 454 63 . . . . 752 Explosive . | . . . . . . . . . Electromagnetic 2380 | . . 606 . . . . 843 931 Impact 188 | . . . . . . . . 188 Slashing 17637 | . . . . . 5654 3316 963 7704 Piercing 1288 | . . 35 . . . 329 240 684 Highest Corruption 48 | . . . . . 1 1 47 48 Average Corruption 7 | . . . . . 1 1 8 22 Corruption Purged 11 | . . . . . . . . 11 Corruption Blocked . | . . . . . . . . . Effects 105 | . . . . . 11 11 6 77 Message Errors 29 | . . . . . 6 3 1 19 Matter Fused 18 | . . . . . . 1 2 15 Heat Flow Errors 15 | . . . . . . 1 . 14 Energy Discharges 14 | . . . . . 2 1 1 10 Parts Rejected 1 | . . . . . . . . 1 Parts Fused 3 | . . . . . 1 . . 2 Data Loss (minor) 11 | . . . . . 1 2 . 8 Data Loss (major) 6 | . . . . . . 3 1 2 Misfires 2 | . . . . . . . . 2 Alerts 3 | . . . . . 1 . 1 1 Misdirections 3 | . . . . . . . . 3 Overload Shots . | . . . . . . . . . Overflow Damage 1194 | . . . . . 362 325 64 443 Projectiles 11 | . . . . . . . . 11 Explosions 162 | . . . . . 26 . 14 122 Melee 1021 | . . . . . 336 325 50 310 Knockbacks 2 | . . . . . . . . 2 Impact 1 | . . . . . . . . 1 Kinetic . | . . . . . . . . . Secondary 1 | . . . . . . . . 1 Self-Inflicted Damage 194 | . . . . . 59 . . 135 Shots 6 | . . . . . 1 . . 5 Rammed 3 | . 1 . . . . . . 2 Targets Rammed 3 | . 1 . . . . . . 2 Kicked . | . . . . . . . . . Crushed . | . . . . . . . . . Highest Temperature 251 | . 24 60 75 . 21 118 5 251 Average Temperature 43 | . 6 17 34 . 11 29 2 83 Received Heat Transfer 4879 | . 192 195 18 . 955 998 328 2193 Siege Activations . | . . . . . . . . . Martial Activations . | . . . . . . . . . Shielding Activations . | . . . . . . . . . Robots Disrupted 4 | . . . . . 1 1 . 2 Combat Hostiles 2 | . . . . . 1 . . 1 Robots Corrupted 9 | . . 2 . . . . 4 3 Combat Hostiles 8 | . . 2 . . . . 4 2 Parts Fried 13 | . . 3 . . . . 3 7 Impact Corruptions 1 | . . . . . . . . 1 Robots Melted . | . . . . . . . . . Combat Hostiles . | . . . . . . . . . Parts Melted 1 | . . . . . . . 1 . Heat Transferred 1298 | . . 623 75 . . . . 600 Parts Sabotaged . | . . . . . . . . . Parts Stolen . | . . . . . . . . . Parts Stripped . | . . . . . . . . . Power Chain Reactions 3 | . . . . . . . . 3 Alert | -11 -10 -10 -9 -9 -6 -6 -6 -5 ------- Run | Yrd Mat Sub Rec Scr Fac Ext Cet Fac Maximum Alert Level 3 | . . . . . 1 1 . 3 Low Security (%) 59 | 100 100 . 100 . 46 30 100 43 Level 1 31 | . . . . . 53 69 . 16 Level 2 2 | . . . . . . . . 9 Level 3 6 | . . . . . . . . 31 Level 4 . | . . . . . . . . . Level 5 . | . . . . . . . . . High Security . | . . . . . . . . . Max Security . | . . . . . . . . . Peak Influence 961 | . 83 . 35 . 390 368 176 961 Initial 179 | . . . . . . 179 176 23 Average 194 | . 19 . 1 . 191 252 87 400 Influence Increases 4581 | . 228 105 73 . 865 1356 165 1789 Destroy 0b10 Robot/C 2780 | . 160 60 20 . 540 740 160 1100 Destroy 0b10 Robot/NC 210 | . 10 . 5 . 50 75 5 65 Destroy Leader 506 | . 42 . . . 128 86 . 250 Allied During Kill 283 | . . . . . . 283 . . Successful Hack 175 | . . . 30 . 31 56 . 58 Disable Machine 225 | . . . 15 . 15 30 . 165 Destroy Structure 117 | . 1 . 3 . 26 11 . 76 Lose Combat Pursuer 285 | . 15 45 . . 75 75 . 75 Influence Decreases 3668 | . 171 162 73 . 498 1408 437 919 Entered New Map 375 | . . 28 . . . 188 139 20 Time Decay 2068 | . 171 107 73 . 400 640 198 479 Lost Part 755 | . . 27 . . 98 120 100 410 Lost Ally 470 | . . . . . . 460 . 10 Squads Dispatched 34 | . 4 . . . 9 4 . 17 Investigation 11 | . 2 . . . 2 2 . 5 Extermination 8 | . . . . . 4 . . 4 Reinforcement 10 | . 2 . . . 3 2 . 3 Assault 2 | . . . . . . . . 2 Garrison 3 | . . . . . . . . 3 Intercept . | . . . . . . . . . Searches Triggered . | . . . . . . . . . Construction Impeded 2 | . . . . . . . . 2 Haulers Reinforced 2 | . . . . . 1 . . 1 Active Scanning Responses . | . . . . . . . . . Cargo Convoy Interrupts . | . . . . . . . . . Stealth | -11 -10 -10 -9 -9 -6 -6 -6 -5 --------- Run | Yrd Mat Sub Rec Scr Fac Ext Cet Fac Distress Signals 9 | . 2 . . . 1 2 2 2 Communications Jammed 30 | . . . . . 30 . . . Distress Signals 30 | . . . . . 30 . . . Times Spotted 206 | . 15 15 1 . 47 43 9 76 Peak Tracking Total 9 | . 3 2 1 . 7 6 5 9 Tactical Retreats 16 | . 1 2 . . 4 5 . 4 Traps | -11 -10 -10 -9 -9 -6 -6 -6 -5 ------- Run | Yrd Mat Sub Rec Scr Fac Ext Cet Fac Traps Triggered 5 | . 1 1 . . . . . 3 Indirectly 3 | . . . . . . . . 3 Trap Hack Attempts . | . . . . . . . . . Triggered . | . . . . . . . . . Disarmed . | . . . . . . . . . Reprogrammed . | . . . . . . . . . Reused . | . . . . . . . . . Traps Extracted . | . . . . . . . . . Installed . | . . . . . . . . . Triggered . | . . . . . . . . . Machines | -11 -10 -10 -9 -9 -6 -6 -6 -5 ---------- Run | Yrd Mat Sub Rec Scr Fac Ext Cet Fac Machines Disabled 16 | . . 1 1 . 1 2 . 11 Max in Single Turn 7 | . . 1 1 . 1 . . 7 Garrison Access 3 | . . . . . 2 . . 1 Machines Repaired . | . . . . . . . . . Machines Dismantled . | . . . . . . . . . Machines Sabotaged . | . . . . . . . . . Overloaded Fab Kills . | . . . . . . . . . Hacking | -11 -10 -10 -9 -9 -6 -6 -6 -5 --------- Run | Yrd Mat Sub Rec Scr Fac Ext Cet Fac Machines Accessed 53 | . 1 4 6 5 13 14 . 10 Terminals 29 | . 1 . 6 . 6 13 . 3 Fabricators 4 | . . . . . 3 . . 1 Repair Stations 1 | . . . . . . . . 1 Recycling Units 1 | . . . . . . 1 . . Scanalyzers 5 | . . . . . 2 . . 3 Garrison Access 4 | . . . . . 2 . . 2 Total Hacks 158 | . 1 8 16 35 29 37 . 32 Successful 87 | . . 8 6 35 14 14 . 10 Failed 71 | . 1 . 10 . 15 23 . 22 Catastrophic 11 | . . . 1 . 5 2 . 3 Database Lockouts . | . . . . . . . . . Manual 30 | . 1 . 8 . 5 13 . 3 Terminals 76 | . 1 . 16 . 13 33 . 13 Fabricators 7 | . . . . . 5 . . 2 Repair Stations 4 | . . . . . . . . 4 Recycling Units 4 | . . . . . . 4 . . Scanalyzers 16 | . . . . . 9 . . 7 Garrison Access 8 | . . . . . 2 . . 6 Terminal Hacks 60 | . . 8 5 35 2 7 . 3 Record 33 | . . 5 . 28 . . . . Part Schematic 7 | . . . 3 . 1 1 . 2 Robot Analysis 6 | . . . . 6 . . . . Open Door 7 | . . 1 . 1 . 5 . . Locate Traps 2 | . . . . . . 1 . 1 Registered Components 1 | . . . . . 1 . . . Zone Layout 2 | . . . 2 . . . . . Proto ID Catalog 1 | . . 1 . . . . . . Release Object 1 | . . 1 . . . . . . Fabricator Hacks 4 | . . . . . 3 . . 1 Load Schematic 2 | . . . . . 2 . . . Build 2 | . . . . . 1 . . 1 Repair Station Hacks 1 | . . . . . . . . 1 Scan Component 1 | . . . . . . . . 1 Recycling Unit Hacks 2 | . . . . . . 2 . . Report Inventory 1 | . . . . . . 1 . . Retrieve Components 1 | . . . . . . 1 . . Scanalyzer 9 | . . . . . 6 . . 3 Insert Component 4 | . . . . . 2 . . 2 Analyze 4 | . . . . . 3 . . 1 Retrieve Study 1 | . . . . . 1 . . . Garrison Access Hacks 3 | . . . . . 2 . . 1 Seal Access 3 | . . . . . 2 . . 1 Unauthorized Hacks 8 | . . . 1 . 1 5 . 1 Terminals 7 | . . . 1 . 1 4 . 1 Botnet 6 | . . . 1 . 1 3 . 1 Operators 1 | . . . . . . 1 . . Fabricators . | . . . . . . . . . Repair Stations . | . . . . . . . . . Recycling Units 1 | . . . . . . 1 . . Mask 1 | . . . . . . 1 . . Scanalyzers . | . . . . . . . . . Garrison Access . | . . . . . . . . . Data Cores Recovered 1 | . . . . . . 1 . . Used 1 | . . . . . . 1 . . Hacking Detections 38 | . 1 . 5 . 11 11 . 10 Full Trace Events 8 | . . . . . 2 2 . 4 Feedback Events . | . . . . . . . . . Feedback Blocked . | . . . . . . . . . Robot Schematics Acquired . | . . . . . . . . . Robots Built . | . . . . . . . . . Authchips . | . . . . . . . . . Time . | . . . . . . . . . Total Robot Build Rating . | . . . . . . . . . Part Schematics Acquired 43 | . . . 3 9 18 7 1 5 Parts Built 3 | . . . . . 2 . . 1 Authchips . | . . . . . . . . . Time 159 | . . . . . 95 . . 64 Total Part Build Rating 18 | . . . . . 10 . . 8 Part Studies Acquired 1 | . . . . . 1 . . . Parts Repaired . | . . . . . . . . . Time . | . . . . . . . . . Parts Recycled . | . . . . . . . . . Recycled Matter . | . . . . . . . . . Retrieved Matter . | . . . . . . . . . Retrieved Components 10 | . . . . . . 10 . . Parts Scanalyzed 4 | . . . . . 2 . . 2 Part Schematics Acquired 3 | . . . . . 2 . . 1 Parts Damaged . | . . . . . . . . . Bothacking | -11 -10 -10 -9 -9 -6 -6 -6 -5 ------------ Run | Yrd Mat Sub Rec Scr Fac Ext Cet Fac Used RIF Installer . | . . . . . . . . . Robots Hacked . | . . . . . . . . . Non-combat . | . . . . . . . . . Combat . | . . . . . . . . . Robot Hacks Applied . | . . . . . . . . . Relay Couplers Released . | . . . . . . . . . Fabnet Peak Effective % . | . . . . . . . . . Robots Rewired 17 | . . . . . . 17 . . Allies Hacked . | . . . . . . . . . Hacks Repelled . | . . . . . . . . . Allies | -11 -10 -10 -9 -9 -6 -6 -6 -5 -------- Run | Yrd Mat Sub Rec Scr Fac Ext Cet Fac Total Allies 24 | . . . . . . 24 . . Largest Group 10 | . . . . . . 10 . . Highest-Rated Group 353 | . . . . . . 353 . . Highest-Rated Ally 159 | . . . . . . 159 . . Total Orders 6 | . . . . . . . . 6 EXPLORE 4 | . . . . . . . . 4 RETURN 2 | . . . . . . . . 2 Ally Attacks 198 | . . . . . . 198 . . Total Damage 4099 | . . . . . . 4099 . . Kills 28 | . . . . . . 28 . . Allies Corrupted . | . . . . . . . . . Allies Melted 2 | . . . . . . 2 . . Intel | -11 -10 -10 -9 -9 -6 -6 -6 -5 ------- Run | Yrd Mat Sub Rec Scr Fac Ext Cet Fac Active Infowar (turns) 3380 | . . . . 69 1764 64 . 1483 Sensors 446 | . . . . . . 63 . 383 Terrain 418 | . . . . . 418 . . . Structural 2711 | . . . . 69 1299 1 . 1342 T.N.C. 375 | . . . . . . . . 375 Jamming 892 | . . . . . 892 . . . Robot Analysis Total 6 | . . . . 6 . . . . Derelict Logs Recovered 4 | . . 2 . 2 . . . . Drone Launches 4 | . . . . . . . . 4 Drone Recoveries 3 | . . . . . . . . 3 Exploration | -11 -10 -10 -9 -9 -6 -6 -6 -5 ------------- Run | Yrd Mat Sub Rec Scr Fac Ext Cet Fac Turns Passed 17563 | 117 688 4412 2171 2465 2689 2289 404 2328 Spaces Moved 7586 | 69 360 1832 401 1524 1216 1051 171 962 Core 363 | 3 . . . 359 . 1 . . Treads 6806 | 66 360 1832 401 1165 799 1050 171 962 Legs 417 | . . . . . 417 . . . Wheels . | . . . . . . . . . Hover . | . . . . . . . . . Flight . | . . . . . . . . . Fastest Speed 50 | 50 160 160 520 50 120 160 160 160 Average Speed 196 | 155 160 216 532 156 177 166 160 162 Slowest Speed 1300 | 160 160 610 610 520 320 1300 160 240 Overloaded Moves . | . . . . . . . . . Propulsion Burnouts . | . . . . . . . . . Robots Hopped . | . . . . . . . . . Potential Cave-ins . | . . . . . . . . . Cave-ins Triggered . | . . . . . . . . . Exploration Rate (%) 54 | 4 70 62 72 86 26 81 57 32 Regions Visited 8 Branch Regions 5 Pre-discovered Areas 8 | . . 1 . 7 . . . . Known Exits Taken 5 | . . 1 . 1 1 1 1 . Unknown Exits Taken 3 | 1 1 . 1 . . . . . Scrap Searched 19 | . . 16 . 3 . . . . Spaces Dug 34 | . 1 7 4 . 12 . . 10 Terrain Destroyed 80 | . 1 7 4 . 24 . . 44 Melee 31 | . . 7 3 . 12 . . 9 Projectile 5 | . 1 . 1 . . . . 3 AOE 44 | . . . . . 12 . . 32 Terrain Rammed . | . . . . . . . . . Walls Destroyed . | . . . . . . . . . Machines Disabled . | . . . . . . . . . Actions | -11 -10 -10 -9 -9 -6 -6 -6 -5 --------- Run | Yrd Mat Sub Rec Scr Fac Ext Cet Fac Total 9281 | 76 411 2024 424 1615 1575 1484 267 1405 Wait 315 | . . 12 5 3 87 96 1 111 Move 7578 | 68 359 1831 400 1523 1215 1050 170 962 Hop . | . . . . . . . . . Pick Up 184 | 2 9 26 2 43 32 31 18 21 Fast Attach 80 | 6 1 4 . 9 21 11 11 17 Attach 65 | . . 3 . 1 15 17 11 18 Detach 10 | . . . . . 4 1 . 5 Swap 92 | . 4 10 3 5 26 17 7 20 Drop 160 | . 3 15 2 31 50 26 19 14 Fire 173 | . 34 109 8 . 1 3 6 12 Melee 464 | . . 14 4 . 124 77 24 221 Ram . | . . . . . . . . . Kick . | . . . . . . . . . Crush 3 | . 1 . . . . . . 2 Escape Stasis . | . . . . . . . . . Rewire 157 | . . . . . . 155 . 2 Trap . | . . . . . . . . . Miscellaneous . | . . . . . . . . . Route ------- -11/Scrapyard -10/Materials (discovered 5 exits: [*Mat x3] / [*Min] / *Sub) -10/Subcaves (discovered 3 exits: [*Mat] / *Rec / *Scr) -9/Recycling (discovered 2 exits: [*Fac] / *Scr) -9/Scraptown (discovered 2 exits: *Fac x2) -6/Factory (discovered 6 exits: Fac x4 / *Low / *Ext) -6/Extension (discovered 2 exits: *Fac / *Cet) -6/Cetus (discovered 2 exits: *Fac / [*Arc]) -5/Factory (discovered 1 exit: *Fac) History --------- Turn | Location | Event 11 | -11/Scrapyard | Discovered new exit (range 16) 118 | -11/Scrapyard | Entered Materials 119 | -10/Materials | Met a group of wandering Federalists 152 | -10/Materials | Discovered new exit (range 10) 309 | -10/Materials | Build established: Mutant 322 | -10/Materials | Discovered new exit (range 15) 344 | -10/Materials | Discovered new exit (range 11) 514 | -10/Materials | Discovered new exit (range 3) 763 | -10/Materials | Discovered new exit (range 13) 806 | -10/Materials | Entered Subcaves 807 | -10/Subcaves | Continued accompanying wandering Federalists (5) 807 | -10/Subcaves | Approached by a straggling Scientist 946 | -10/Subcaves | Visited 4L-MR0's lab 967 | -10/Subcaves | Found Tower Shield 1119 | -10/Subcaves | Scientist uncovered a shortcut to Scraptown 1179 | -10/Subcaves | Shifting Twisted Machinery released Riot Gun 1215 | -10/Subcaves | Shifting Twisted Machinery released Hvy. Riot Gun 1407 | -10/Subcaves | A swath of the cavern ceiling suddenly collapsed 1548 | -10/Subcaves | Shifting Twisted Machinery released Sub. Shrapnel Launcher 1553 | -10/Subcaves | Shifting Twisted Machinery released Mak. Spear 1931 | -10/Subcaves | Core integrity fell below 50% 2168 | -10/Subcaves | Disturbed a concealed Subdweller 2874 | -10/Subcaves | Build established: Derelict-Mutant 2905 | -10/Subcaves | Disturbed a concealed Subdweller 2943 | -10/Subcaves | Discovered new exit (range 15) 2954 | -10/Subcaves | Learned Materials emergency access door positions 3026 | -10/Subcaves | Visited Clippyterm 3031 | -10/Subcaves | Identified exit to Recycling 3031 | -10/Subcaves | Learned location of Section 7 (-2) 3288 | -10/Subcaves | Core integrity fell below 20% 3783 | -10/Subcaves | Ambushed by angry Subdweller bent on revenge 4117 | -10/Subcaves | Build established: Hauler-Mutant 4845 | -10/Subcaves | Found SUBCON Basin 5218 | -10/Subcaves | Entered Recycling 6807 | -9/Recycling | Discovered new exit (range 16) 7199 | -9/Recycling | Scanned before Scraplab entrance 7272 | -9/Recycling | Entered Scraplab 7384 | -9/Recycling | Discovered new exit (range 2) 7389 | -9/Recycling | Entered Scraptown 7826 | -9/Scraptown | Build established: Mutant 7888 | -9/Scraptown | Scanned Subdweller tech in exchange for log data 7893 | -9/Scraptown | Learned Factory garrison access intel 7894 | -9/Scraptown | Learned 8 Research zone layouts 7934 | -9/Scraptown | Visited Symbiants 7969 | -9/Scraptown | Visited Red Mages 8030 | -9/Scraptown | Visited Cyclists 8064 | -9/Scraptown | Heard Great Nut preacher, LISTEN AND RECITE! 8072 | -9/Scraptown | Visited Awakened 8113 | -9/Scraptown | Visited Shadow of the Wyrm 8147 | -9/Scraptown | Visited UFD Registry 8147 | -9/Scraptown | Registered with UFD as "Flashtorch" 8173 | -9/Scraptown | Visited Cave Peace 8198 | -9/Scraptown | Visited Assassins FH 8308 | -9/Scraptown | Tech Extrapolator generated special schematic: Deep Structural Scanner 8329 | -9/Scraptown | Entered Cyclist Reading Room 8336 | -9/Scraptown | Learned location of Zion (-7) 8467 | -9/Scraptown | Tech Extrapolator generated special schematic: Fire Trap 8587 | -9/Scraptown | Visited Sword Containment 8604 | -9/Scraptown | Found Prototype Slashing Weapon 8640 | -9/Scraptown | Visited Derelict Rescue Squad 8656 | -9/Scraptown | Found DRS Beacon 8686 | -9/Scraptown | Visited Analyses Database 8889 | -9/Scraptown | Visited DA-N13 Charitable Foundation 8903 | -9/Scraptown | Found DCF Scrap (28 items) 9001 | -9/Scraptown | Visited Scrapoid Research Area 9043 | -9/Scraptown | Visited Cartography Club 9103 | -9/Scraptown | Visited Science Testing Area 9153 | -9/Scraptown | Visited Observation Area 9208 | -9/Scraptown | Visited Scrapoid Pod Storage 9238 | -9/Scraptown | Build established: Derelict-Mutant 9325 | -9/Scraptown | Learned location of Warlord (-4) 9325 | -9/Scraptown | Learned location of Cetus (-6) 9325 | -9/Scraptown | Learned location of Testing (-3) 9325 | -9/Scraptown | Learned 16 Materials zone layouts 9325 | -9/Scraptown | Learned 20 Factory zone layouts 9325 | -9/Scraptown | Learned 8 Research zone layouts 9325 | -9/Scraptown | Learned 16 Lower Caves zone layouts 9325 | -9/Scraptown | Learned 12 Proximity Caves zone layouts 9325 | -9/Scraptown | Learned 20 Proximity Caves zone layouts 9325 | -9/Scraptown | Learned 4 Hub_04(d) zone layouts 9325 | -9/Scraptown | Learned location of 2 exits from Factory 9325 | -9/Scraptown | Learned location of 2 exits from Research 9325 | -9/Scraptown | Identified exit to Factory 9325 | -9/Scraptown | Learned 12 Upper Caves zone layouts 9342 | -9/Scraptown | Found Deep Structural Scanner 9378 | -9/Scraptown | Visited LU-1G1's Boring Crew 9449 | -9/Scraptown | Identified Companion Sword 9561 | -9/Scraptown | Build established: Mutant 9700 | -9/Scraptown | Met Optimus 9700 | -9/Scraptown | Accepted into 0bPrime 9842 | -9/Scraptown | Discovered exit to Factory (range 5) 9854 | -9/Scraptown | Entered Factory 9854 | -6/Factory | Evolved 8 slots: Propulsion x2, Utility x6 9855 | -6/Factory | Identified exit to Extension 9855 | -6/Factory | Identified exit to Factory 9856 | -6/Factory | Identified exit to Lower Caves 9857 | -6/Factory | Loaded intel: 4 garrison access locations 10566 | -6/Factory | Fabricated Spk. Medium Treads? 10882 | -6/Factory | Tech Extrapolator generated special schematic: Energy Deflector 10954 | -6/Factory | Destroyed 7 combat bots 10959 | -6/Factory | Lost 3 parts (2n1u) 11542 | -6/Factory | Build established: Gladiator 12543 | -6/Factory | Entered Extension 12704 | -6/Extension | Core integrity fell below 50% 12744 | -6/Extension | Rescued a captive Derelict 12748 | -6/Extension | Rescued a captive Derelict 13022 | -6/Extension | Rescued a captive Derelict 13023 | -6/Extension | Rescued a captive Derelict 13117 | -6/Extension | Rescued A7 13342 | -6/Extension | Build established: Scavenger-Gladiator 13466 | -6/Extension | Spotted B-75 Beast 13482 | -6/Extension | Spotted B-75 Beast 13488 | -6/Extension | Allies destroyed B-75 Beast 13547 | -6/Extension | Lost 8 allies 13553 | -6/Extension | Destroyed B-75 Beast 13576 | -6/Extension | Extracted ID and sensor layout for unrecognized location from A7's data core 13583 | -6/Extension | Lost 8 parts (1p4n3u) 13643 | -6/Extension | Disrupted transfer network 13781 | -6/Extension | Build established: Gladiator 14011 | -6/Extension | Rescued a captive Derelict 14012 | -6/Extension | Rescued a captive Derelict 14051 | -6/Extension | Rescued a captive Derelict 14107 | -6/Extension | Build established: Commander-Gladiator 14147 | -6/Extension | Lost 7 allies 14329 | -6/Extension | Lost 3 allies 14361 | -6/Extension | Attached Tower Shield, gained temporary slots: Power, Propulsion x2, Utility x2, Weapon x2 14411 | -6/Extension | Build established: Gladiator 14734 | -6/Extension | Build established: Scavenger-Gladiator 14783 | -6/Extension | Discovered exit to Factory (range 10) 14789 | -6/Extension | Discovered new exit (range 6) 14797 | -6/Extension | Identified exit to Cetus 14832 | -6/Extension | Entered Cetus 14853 | -6/Cetus | Spotted Cetus Guard 14853 | -6/Cetus | Spotted Cetus Guard 14855 | -6/Cetus | Spotted Cetus Guard 14857 | -6/Cetus | Spotted Cetus Guard 14881 | -6/Cetus | Destroyed Cetus Guard 14907 | -6/Cetus | Core integrity fell below 20% 14910 | -6/Cetus | Destroyed Cetus Guard 14918 | -6/Cetus | Destroyed Cetus Guard 14939 | -6/Cetus | Destroyed Cetus Guard 14970 | -6/Cetus | Lost 10 parts (1p5n3u1w) 15066 | -6/Cetus | Discovered new exit (range 15) 15105 | -6/Cetus | Spotted Cetus Guard 15106 | -6/Cetus | Spotted Cetus Guard 15112 | -6/Cetus | Destroyed Cetus Guard 15112 | -6/Cetus | Destroyed Cetus Guard 15112 | -6/Cetus | Spotted Cetus Guard 15112 | -6/Cetus | Spotted Cetus Guard 15115 | -6/Cetus | Destroyed Cetus Guard 15116 | -6/Cetus | Destroyed Cetus Guard 15127 | -6/Cetus | Discovered exit to Factory (range 15) 15135 | -6/Cetus | Met Revision 17 15147 | -6/Cetus | System corruption reached 10% 15165 | -6/Cetus | System corruption reached 30% 15236 | -6/Cetus | Entered Factory 15236 | -5/Factory | Evolved 2 slots: Utility x1, Weapon x1 15266 | -5/Factory | Discovered new exit (range 8) 15290 | -5/Factory | Identified exit to Factory 15746 | -5/Factory | Tech Extrapolator generated special schematic: Machine Rigger 15863 | -5/Factory | Garrison activated, responded to threat 15947 | -5/Factory | System corruption reached 10% 16137 | -5/Factory | Lost 3 parts (3u) 16658 | -5/Factory | Destroyed 7 combat bots 16700 | -5/Factory | Found Corrupted Prototype Launcher 16736 | -5/Factory | First assault squad dispatched 16759 | -5/Factory | Lost 3 parts (1p2u) 16863 | -5/Factory | Core integrity fell below 50% 16873 | -5/Factory | Destroyed 8 combat bots 16931 | -5/Factory | Lost 8 parts (2p3n2u1w) 16971 | -5/Factory | System corruption reached 30% 16987 | -5/Factory | Build established: Scavenger-Mutant 17047 | -5/Factory | Fabricated Arm. Heavy Treads (x1) 17546 | -5/Factory | Lost 19 parts (1p2n13u3w) 17547 | -5/Factory | Core integrity fell below 20% 17564 | -5/Factory | Destroyed by P-70 Sage with Tesla Rifle Last Messages --------------- 17515_ Energy Well crushed and broken. 17515_ Corrupted Med. Treads crushed and broken. 17515_ Imp. Treads crushed and broken. 17515_ Energy Well crushed and broken. 17520_ System corrupted: Energy discharge (-21). 17523_ Critical hit (Burn: +37). 17529_ G-50 Soldier destroyed. 17531_ R-10 Processor collects Adv. Sensor Array. 17533_ Critical hit (Burn: +37). 17535_ System corrupted: Matter fused (-9). 17536_ G-67 Veteran destroyed. 17539_ Acquired 20 matter. 17548_ Destroyed Lgt. Antimatter Reactor. 17549_ Lgt. Angular Momentum Engine destroyed. 17549_ Centrium Heavy Treads destroyed. 17550_ System corrupted: Heat flow error (+134). 17550_ G-67 Veteran destroyed. 17552_ Imp. Medium Armor Plating destroyed. 17558_ Arm. Heavy Treads destroyed. 17563_ G-50 Soldier destroyed. Map ----- +----------------------------------------------------+ | | | | | | | | | ?????????????????????????????????????????????????? | | ?????????#################???????????????????????? | | ?????????#################???????????????????????? | | ?????????#################???????????????????????? | | ?????????#################???????????????????????? | | ?????????#### ####???????????????????????? | | ?????????#### ! ####???????????????????????? | | ?????????#### ! ####???????????????????????? | | ?????????#### = """ ##########?????????????????? | | ?############"" """ ##########?????????????????? | | ?############"T """ ##########?????????????????? | | ?############"" ## ####?????????????????? | | ? ######### ## ####?????????????????? | | ?"" # * #######+###### ####?????????????????? | | ?"" # [=#### ##############???????? | | ?"" + " !%!*=+ ! # #???????? | | ?"" # *![%=#=!] # #??????## | | ? # ###+###+####%#*p!*# #??????## | | ?##### #### ! ##=#p/!%# #????#### | | ? ## ####! ! ##*#=*!]# ###### | | ? ## #### ## ##/### + < | | ? ## #### """ ## ##@### ###### | | ?????????#### """"" ## ##%### ####### # | | ????????? + """"" ## ##g### ! + # | | ????????? ## + T#%%"/ [[ #### # | | ????????? ## """ ## ##### [[ #### # | | ????????? ## """"" ## ###### [[ #### # | | ???????? ## """"" ## ######+#####+######### # | | ????????" ## ## ## #?#### | | ????????" #### ###### ## #?#### | | ????????" ###########+## #?#### | | ???????? # # ######+#### | | ????????" # ||# # ## | | ????????" # = |=########## # """ ## | | ????????" # ########## # """ ## | | ???????? + "T" ########## # """ ## | | ????????" # """ [########## + ## | | ????????" ############"########## # """ + | | ????????" # # # # """ ## | | ???????? # # """ # ? # """ ## | | ?????????? # # "G ! """" # ??# ## | | ????????????????? # """ """" # ??########### | | ????????????????? # """" # ????????????? | | ????????????????? # """" / ????????????? | | ?????????????????#### # ????????????? | | ?????????????????#### """" """" # ????????????? | +----------------------------------------------------+ Best States ------------- Heat Dissipation 51 Energy Generation 34 Energy Capacity 700 Matter Stores 300 Matter Capacity 300 Sight Range 16 Robot Scan Range 16 Terrain Scan Range 20 Terrain Scan Density 10 Jamming Range 12 Additional Mass Support 9 Armor Coverage 2000 Resistance: KI 30 Resistance: TH 20 Resistance: EM 25 Core Shielding 30 Weapon Shielding 66 Melee Speed Boost 20 Phase Shifting 5 Evasion (%) 55 Melee Accuracy 20 Target Analysis 9 Core Analysis 6 Armor Integrity Analysis 30 Recoil Reduction 6 Defensive Hacking 12 Item Schematics ----------------- Arm. Treads | -9/Recycling | Hacked Imp. Weapon Shielding | -9/Recycling | Hacked Plasma Cannon | -9/Recycling | Hacked Spk. Treads | -9/Scraptown | Extrapolated Lgt. Humpback | -9/Scraptown | Extrapolated Mak. Leg | -9/Scraptown | Extrapolated Mak. Coolant Network | -9/Scraptown | Extrapolated Deep Structural Scanner | -9/Scraptown | Extrapolated Mak. Light Armor Plating | -9/Scraptown | Extrapolated Fire Trap | -9/Scraptown | Extrapolated Mak. Targeting Computer | -9/Scraptown | Extrapolated Hvy. Battle Rifle | -9/Scraptown | Extrapolated 0b10 Decoder Chip [Generic] | -6/Factory | Extrapolated 0b10 Decoder Chip [Scout] | -6/Factory | Extrapolated 0b10 Decoder Chip [Skirmisher] | -6/Factory | Extrapolated Mak. Medium Armor Plating | -6/Factory | Extrapolated Mak. Ablative Armor | -6/Factory | Extrapolated Power Sword | -6/Factory | Scanalyzed Lyr. Medium Armor Plating | -6/Factory | Scanalyzed Spk. Medium Treads | -6/Factory | Extrapolated Mak. Terrain Scanner | -6/Factory | Extrapolated Mak. Heavy Armor Plating | -6/Factory | Extrapolated Beamcaster | -6/Factory | Extrapolated Slug Cannon | -6/Factory | Extrapolated Energy Deflector | -6/Factory | Extrapolated Hvy. Beamcaster | -6/Factory | Extrapolated Plasma Flamer | -6/Factory | Extrapolated Bore Cannon | -6/Factory | Extrapolated Tactical Coordination Suite | -6/Factory | Extrapolated Cmb. Gravmag System | -6/Factory | Hacked Mak. Core Shielding | -6/Extension | Extrapolated Mak. Hacking Suite | -6/Extension | Extrapolated Mak. System Shield | -6/Extension | Extrapolated Mak. ECM Suite | -6/Extension | Extrapolated Mak. Thermal Plating | -6/Extension | Extrapolated Cmb. Airjet | -6/Extension | Hacked Mak. Kinetic Plating | -6/Extension | Extrapolated Mak. Sensor Array | -6/Cetus | Extrapolated Centrium Heavy Treads | -5/Factory | Scanalyzed Machine Rigger | -5/Factory | Extrapolated Mak. System Restoration Module | -5/Factory | Extrapolated Adv. Shield Generator | -5/Factory | Hacked Imp. Corruption Screen | -5/Factory | Hacked Robot Schematics ------------------ None Fabricated ------------ Spk. Medium Treads | x2 | -6/Factory Arm. Heavy Treads | x1 | -5/Factory | Preloaded Repaired ---------- Nothing Studied --------- Power Sword | -6/Factory | Hacked Alien Tech Used ----------------- None Achievements -------------- Inventory Pressure Left-hand Path Scientist At Large Challenges ------------ None Game ------ Seed BlanketSixObliterator Manual? 0 Play Time 02:15:56 Cumulative 253.8 hours Start 2025.11.11 @ 12:32:37 End 2025.11.11 @ 15:48:48 Sessions 1 Manual Loads 0 Difficulty Rogue Special Mode None Game No. 253 Rogue 249 Adventurer 3 Explorer 1 Win Type - Total 1 Types 1/0/0/0/0/0/0/0/0/0 Lore% 77 Gallery% 75 Achievement% 59 Wizard Run 0 Options --------- Layout 0 ASCII 0 Keyboard 0 Movement Mouse Keybinds 0 Fullscreen 2 Font 18/SmallcapsGlow Map View 76x50 Zoom Use 0% Tactical HUD 1 Map Filters NONE Filters NONE Steam 1 RUN: 6f743567-fc0e-4826-b88a-fd2933e436b9